bitfinex-derivatives/quotes_ETHF0:USTF0_20241007
["timestamp","ask_amount","ask_price","bid_price","bid_amount"]
[1728310893031,0.5517,2509.4,2508.7,0.99666]
[1728310893233,0.5517,2509.4,2509.3,0.39857]
[1728310893632,0.5264,2509.7,2509.1,4.33]
[1728310893938,0.5264,2509.7,2509.6,0.39852]
[1728310894442,4.90972,2509.7,2509.5,0.39854]
[1728310894739,4.90972,2509.7,2509.1,4.33]
[1728310894740,0.5264,2509.7,2509.1,4.33]
[1728310894934,0.5264,2509.7,2508.7,4.33]
[1728310895136,0.39855,2509.5,2509.4,0.39856]
[1728310895439,3.2078,2509.5,2508.8,0.99663]
[1728310895639,0.5264,2509.7,2509.1,0.9965]
[1728310895947,0.5264,2509.7,2509.6,0.39852]
[1728310896444,0.59847,2510.0,2509.8,0.39848]
[1728310896643,7.1926,2509.9,2508.9,0.5744]
[1728310896830,3.2078,2509.4,2508.9,0.5744]
[1728310897036,3.2078,2509.4,2509.0,0.39862]
[1728310897037,3.60636,2509.4,2509.0,0.39862]
[1728310897239,3.2078,2509.4,2508.5,0.99675]
[1728310897542,0.39863,2509.0,2508.5,4.3550669]
[1728310897844,3.2078,2509.1,2508.4,8.086]
[1728310897845,3.60641,2509.1,2508.9,0.39863]
[1728310898143,3.60641,2509.1,2508.5,0.99676]
[1728310898338,3.2078,2509.1,2509.0,0.39862]
[1728310899131,0.565,2509.4,2509.3,0.39857]
[1728310899332,3.60633,2509.6,2509.4,0.39855]
[1728310899536,0.39854,2509.5,2509.3,0.39856]
[1728310899735,0.99636,2509.5,2508.8,4.33]
[1728310899939,0.39858,2509.3,2508.8,4.33]
[1728310900137,4.20426,2509.3,2508.4,8.086]
[1728310900442,1.1015,2509.2,2508.9,0.39864]
[1728310900644,0.5539,2509.2,2509.1,0.3986]
[1728310900847,3.2078,2509.3,2509.2,0.39859]
[1728310901635,3.60638,2509.3,2509.2,0.39859]
[1728310901835,7.1934,2509.3,2509.2,0.39859]
[1728310902138,3.2078,2509.3,2508.5,4.33]
[1728310902346,0.3986,2509.2,2508.6,0.99672]
[1728310902539,0.3986,2509.2,2508.7,0.99668]
[1728310902843,0.39853,2509.6,2508.9,1.3952]
[1728310903044,0.39853,2509.6,2509.0,1.57123]
[1728310903346,0.39853,2509.6,2509.4,0.39855]
[1728310903542,4.3093,2509.7,2509.5,0.39853]
[1728310903846,3.4078,2510.0,2509.1,7.44950549]
[1728310904144,0.39849,2509.9,2509.7,0.3985]
[1728310904531,0.39849,2509.9,2509.3,0.99644]
[1728310904940,0.39848,2509.9,2509.7,0.3985]
[1728310905142,0.39848,2509.9,2509.1,4.75121]
[1728310905143,0.39852,2509.7,2509.5,0.39853]
[1728310905336,0.39852,2509.7,2509.1,4.75121]
[1728310905337,3.9417,2510.0,2509.4,0.39855]
[1728310905542,0.39854,2509.6,2509.5,0.39854]
[1728310905941,0.99624,2509.8,2509.5,0.39854]
[1728310906147,0.99624,2509.8,2509.1,3.2078]
[1728310906348,0.99624,2509.8,2509.0,0.5747]
[1728310906349,4.20413,2509.6,2509.0,0.5747]
[1728310906643,3.2078,2509.6,2509.0,0.5747]
[1728310906841,0.39854,2509.5,2509.1,0.99652]
[1728310907140,0.39856,2509.4,2509.3,0.39856]
[1728310907339,3.2078,2509.6,2509.1,0.39859]
[1728310907340,0.3986,2509.2,2509.1,0.39859]
[1728310907538,3.2078,2509.3,2508.5,4.33]
[1728310907742,3.60638,2509.3,2509.2,0.39859]
[1728310908149,0.3986,2509.2,2509.1,0.39859]
[1728310908444,0.3986,2509.2,2508.3,0.5523]
[1728310908445,0.39867,2508.8,2508.3,0.5523]
[1728310908637,0.39869,2508.6,2508.5,0.39869]
[1728310909043,4.38509,2508.6,2508.5,0.3987]
[1728310909234,4.20441,2508.9,2508.8,0.39865]
[1728310909235,3.60644,2508.9,2508.8,0.39865]
[1728310909444,0.39866,2508.8,2508.6,0.39868]
[1728310909648,0.39868,2508.7,2508.2,0.99686]
[1728310909845,4.20441,2508.9,2508.0,3.2078]
[1728310909846,3.2078,2508.9,2508.0,3.2078]
[1728310910143,4.73763,2508.6,2508.0,3.2078]
[1728310910343,0.5433,2508.5,2508.0,3.2078]
[1728310910547,1.39552,2508.4,2508.1,0.39876]
[1728310910847,3.7409,2508.6,2508.0,3.2078]
[1728310911044,0.5331,2508.6,2508.1,4.33]
[1728310911245,0.5433,2508.9,2508.8,0.39865]
[1728310911548,0.5433,2508.9,2508.2,0.5313]
[1728310911747,3.2078,2508.6,2508.3,0.39872]
[1728310911943,3.2078,2508.6,2508.2,0.39873]
[1728310911944,0.39873,2508.4,2508.2,0.39873]
[1728310912253,3.7409,2508.6,2507.8,0.99703]
[1728310912451,0.39873,2508.4,2508.2,0.39874]
[1728310912656,3.2078,2508.3,2507.7,0.5313]
[1728310912859,0.39877,2508.1,2507.9,0.39879]
[1728310913150,3.2078,2508.0,2507.7,0.39881]
[1728310913339,3.778,2508.0,2507.2,0.99727]
[1728310913546,4.17678,2508.0,2507.1,4.8865]
[1728310913745,0.3988,2507.9,2507.7,0.39882]
[1728310913946,0.39881,2507.8,2507.6,0.39883]
[1728310914150,3.778,2508.0,2507.3,0.99723]
[1728310914349,0.39882,2507.8,2507.1,5.8838]
[1728310914548,0.5379,2507.9,2507.2,0.99727]
[1728310914857,3.2078,2507.7,2507.1,0.5565]
[1728310915054,0.39885,2507.6,2507.5,0.39885]
[1728310915365,3.2078,2507.7,2507.2,0.3989]
[1728310915548,3.2078,2507.7,2506.4,4.33]
[1728310915747,3.2078,2507.4,2507.3,0.39889]
[1728310916844,0.3989,2507.3,2507.1,0.39891]
[1728310917046,3.2078,2507.4,2506.8,0.5569]
[1728310917249,0.39894,2507.0,2506.8,0.39896]
[1728310917743,4.38774,2507.0,2506.8,0.39896]
[1728310917947,3.9888,2507.0,2506.8,0.39896]
[1728310918149,0.39897,2506.8,2506.6,0.399]
[1728310918361,3.7326,2507.1,2506.2,0.5569]
[1728310918555,0.399,2506.7,2506.4,0.39902]
[1728310918860,0.39899,2506.7,2506.5,0.39901]
[1728310919056,4.38859,2506.7,2506.5,0.39901]
[1728310919256,3.9896,2506.7,2506.2,0.5569]
[1728310919456,3.2078,2506.8,2506.2,0.5569]
[1728310919655,0.39899,2506.7,2506.5,0.39901]
[1728310919851,3.60678,2506.8,2506.5,0.39901]
[1728310920047,0.39899,2506.7,2506.5,0.39901]
[1728310920248,0.399,2506.7,2506.5,0.39901]
[1728310920662,3.60678,2506.8,2506.6,0.39899]
[1728310920857,0.39899,2506.7,2506.5,0.39901]
[1728310921049,4.98708,2506.7,2505.8,4.2056]
[1728310921256,3.2078,2506.5,2505.7,4.9061]
[1728310921658,0.39906,2506.3,2506.1,0.39908]
[1728310921857,3.2078,2506.2,2505.7,0.5761]
[1728310922154,3.2078,2506.2,2505.9,0.39911]
[1728310922155,0.39909,2506.1,2505.9,0.39911]
[1728310922455,0.39905,2506.3,2506.0,0.39908]
[1728310922656,0.5329,2506.4,2505.7,0.5761]
[1728310922960,3.2078,2506.2,2505.4,4.33]
[1728310923163,0.39909,2506.1,2505.9,0.39911]
[1728310923460,0.3991,2506.0,2505.8,0.39912]
[1728310923949,0.39912,2505.9,2505.7,0.39914]
[1728310924152,4.20549,2506.2,2505.4,0.5856]
[1728310924359,0.39912,2505.9,2505.7,0.39914]
[1728310924656,0.39915,2505.7,2505.5,0.39917]
[1728310925161,0.39917,2505.6,2505.4,0.39919]
[1728310925352,0.5378,2505.8,2505.1,3.2078]
[1728310925549,0.5847,2506.7,2505.5,7.5378]
[1728310925550,3.2078,2506.5,2505.5,7.5378]
[1728310925756,0.5378,2506.9,2506.6,0.399]
[1728310925958,0.5378,2506.9,2506.0,0.99775]
[1728310925959,0.5378,2506.9,2506.2,0.99765]
[1728310926154,1.0803,2506.9,2506.2,0.99765]
[1728310926356,1.0803,2506.9,2505.9,4.33]
[1728310926357,0.39902,2506.6,2505.9,4.33]
[1728310926563,0.39902,2506.6,2505.8,4.2056]
[1728310926564,0.39903,2506.5,2506.2,0.39906]
[1728310926954,3.2078,2506.7,2505.9,4.82779]
[1728310927265,1.0803,2506.9,2506.0,0.99773]
[1728310927664,1.0803,2506.9,2505.9,3.83]
[1728310927863,1.0803,2506.9,2506.8,0.39897]
[1728310928064,1.0803,2506.9,2506.3,0.9976]
[1728310928267,1.0803,2506.9,2506.8,0.39897]
[1728310928662,0.5425,2506.9,2506.8,0.39897]
[1728310929360,4.5313,2506.9,2506.4,0.5377]
[1728310929564,0.5425,2506.9,2506.8,0.39897]
[1728310929759,0.5425,2506.9,2506.4,1.53527]
[1728310929760,0.5425,2506.9,2506.4,0.5377]
[1728310929957,0.5425,2506.9,2506.6,0.399]
[1728310929958,0.39898,2506.8,2506.6,0.399]
[1728310930172,4.38858,2506.8,2506.6,0.399]
[1728310930467,3.9896,2506.8,2506.4,0.5377]
[1728310930661,3.2078,2507.0,2506.5,4.31]
[1728310930859,0.5455,2507.9,2506.9,4.31]
[1728310931056,0.5455,2507.9,2507.8,0.39881]
[1728310931460,0.5315,2508.2,2507.4,4.31]
[1728310931762,3.7423,2508.5,2507.7,0.99705]
[1728310931961,3.60641,2509.1,2508.5,0.3987]
[1728310932170,3.2078,2509.1,2508.5,0.39868]
[1728310932471,3.2078,2508.8,2507.8,4.31]
[1728310932670,3.2078,2508.5,2508.3,0.39873]
[1728310932971,0.5315,2508.7,2507.8,8.74100901]
[1728310933264,0.5315,2508.7,2507.8,4.31]
[1728310933472,3.2078,2508.5,2508.3,0.39872]
[1728310933765,3.2078,2508.5,2508.4,0.39872]
[1728310933968,3.2078,2508.5,2507.9,0.99699]
[1728310934265,3.2078,2508.5,2507.6,3.2078]
[1728310934574,3.2078,2508.2,2507.5,0.99715]
[1728310934766,3.2078,2508.2,2508.1,0.39876]
[1728310935277,0.5315,2508.7,2507.8,4.31]
[1728310935467,0.93018,2508.7,2508.5,0.39869]
[1728310935770,0.5315,2508.7,2508.5,0.39869]
[1728310935971,3.9864,2508.6,2508.4,0.3987]
[1728310936168,0.5315,2508.7,2508.0,0.99695]
[1728310936377,3.2078,2508.8,2508.5,0.3987]
[1728310936671,3.2078,2508.8,2508.1,0.39876]
[1728310936672,3.60647,2508.8,2508.1,0.39876]
[1728310936864,0.39871,2508.5,2508.3,0.39872]
[1728310937260,3.9864,2508.5,2507.9,0.5487]
[1728310937467,3.2078,2508.8,2508.0,0.99693]
[1728310937673,3.2078,2508.8,2507.9,0.5487]
[1728310937970,0.39868,2508.7,2507.9,0.5487]
[1728310938167,3.2078,2508.8,2508.6,0.39868]
[1728310938368,3.2078,2508.8,2508.0,0.99695]
[1728310938369,0.39867,2508.7,2508.0,0.99695]
[1728310938565,0.39867,2508.7,2508.5,0.39869]
[1728310938963,4.38508,2508.6,2508.4,0.3987]
[1728310939170,0.39868,2508.6,2508.3,0.39872]
[1728310939376,0.39871,2508.5,2508.2,0.39874]
[1728310939571,0.39869,2508.6,2507.9,0.5487]
[1728310939772,0.39869,2508.6,2507.9,1.54567]
[1728310939969,3.2078,2508.5,2507.9,0.5487]
[1728310940167,0.39873,2508.4,2508.2,0.39874]
[1728310940468,3.60651,2508.5,2508.3,0.39872]
[1728310940674,3.2078,2508.5,2508.4,0.39872]
[1728310940873,3.60651,2508.5,2508.0,0.39878]
[1728310941174,3.60651,2508.5,2507.9,0.5487]
[1728310941175,3.2078,2508.5,2507.9,0.5487]
[1728310941372,3.2078,2508.5,2508.3,0.39873]
[1728310941577,3.6065,2508.5,2508.3,0.39873]
[1728310941776,3.6065,2508.5,2507.8,8.51481]
[1728310941777,4.38512,2508.4,2508.2,0.39874]
[1728310941979,3.2078,2508.5,2507.8,7.5178]
[1728310942273,3.2078,2508.5,2508.4,0.39872]
[1728310942475,3.60646,2508.8,2508.6,0.39867]
[1728310942672,0.39867,2508.7,2508.5,0.39869]
[1728310942870,3.2078,2508.8,2508.0,0.99693]
[1728310943183,3.2078,2508.8,2508.7,0.39867]
[1728310943367,0.01,2509.0,2508.9,0.39864]
[1728310943773,0.01,2509.0,2508.9,8.69424]
[1728310945475,0.5722,2509.6,2508.9,8.2956]
[1728310945675,19.89989,2513.0,2508.9,8.2956]
[1728310945676,3.2078,2510.4,2509.4,3.2078]
[1728310945873,0.2,2510.0,2509.9,0.39848]
[1728310946286,3.2078,2510.4,2509.9,9.984]
[1728310946473,3.39787487,2510.4,2509.9,4.50174868]
[1728310946676,3.79628487,2510.4,2510.0,0.39845]
[1728310946879,3.79627487,2510.4,2509.5,1.58666]
[1728310947078,3.39787487,2510.4,2509.5,1.58666]
[1728310947273,3.39787487,2510.4,2509.5,0.5903]
[1728310947474,3.2078,2510.1,2509.3,3.2078]
[1728310947677,3.2078,2510.1,2509.6,0.39851]
[1728310947877,3.39787487,2510.1,2509.3,3.2078]
[1728310948087,0.39847,2510.0,2509.7,0.3985]
[1728310948285,0.39846,2510.0,2509.7,0.3985]
[1728310948490,0.58853487,2510.0,2509.6,0.39851]
[1728310948988,0.58853487,2510.0,2509.3,3.2078]
[1728310948989,0.39852,2509.7,2509.3,3.60636]
[1728310949179,3.2078,2509.8,2509.3,3.2078]
[1728310949374,3.2078,2509.8,2509.0,0.5903]
[1728310949375,0.39853,2509.6,2509.0,0.5903]
[1728310949589,3.39787487,2509.8,2509.0,0.5903]
[1728310949782,0.19007487,2509.8,2509.0,8.1081]
[1728310949981,0.19007487,2509.8,2509.0,9.10463]
[1728310950185,0.19007487,2509.8,2509.4,0.39855]
[1728310950383,0.19007487,2509.8,2509.0,8.6318]
[1728310950582,0.58857487,2509.8,2509.3,0.39856]
[1728310950782,3.2078,2509.6,2509.0,3.7981]
[1728310951097,0.19007487,2509.6,2509.0,3.2078]
[1728310951383,0.19007487,2509.6,2509.0,7.5178]
[1728310951587,0.19007487,2509.6,2509.1,0.99652]
[1728310951785,0.19007487,2509.6,2509.5,0.39854]
[1728310952595,0.39848,2509.9,2509.2,0.5982]
[1728310952596,3.2078,2510.1,2509.2,0.5982]
[1728310952891,3.39787487,2510.1,2509.8,0.39849]
[1728310953096,3.39787487,2510.1,2509.8,0.39848]
[1728310953097,0.19007487,2510.1,2509.8,0.39848]
[1728310953600,0.19007487,2510.1,2509.9,0.39848]
[1728310953893,0.19007487,2510.1,2509.8,0.39849]
[1728310953894,0.58852487,2510.1,2509.8,0.39849]
[1728310954096,0.19007487,2510.1,2509.8,0.39849]
[1728310954398,0.19007487,2510.1,2509.4,4.31]
[1728310954604,0.19007487,2510.1,2509.5,0.99636]
[1728310954898,3.2078,2510.6,2510.0,4.31]
[1728310955090,3.39787487,2511.3,2510.5,3.2078]
[1728310955293,3.39787487,2511.3,2510.7,4.31]
[1728310955491,3.39787487,2511.3,2510.9,0.39831]
[1728310955790,0.39827,2511.2,2510.9,0.39831]
[1728310955986,3.39787487,2511.3,2510.6,0.5762]
[1728310956189,7.38027487,2511.3,2510.5,3.2078]
[1728310956390,7.38027487,2511.3,2509.3,0.581]
[1728310956391,0.39839,2510.5,2510.1,0.39843]
[1728310956596,3.2078,2511.0,2510.0,4.31]
[1728310956893,0.72977487,2511.2,2510.3,4.20382]
[1728310957096,0.58835487,2511.2,2510.8,0.39833]
[1728310957290,0.19007487,2511.2,2510.7,4.31]
[1728310957495,0.19007487,2511.2,2511.1,0.39827]
[1728310957701,0.19007487,2511.2,2510.8,0.5762]
[1728310957993,3.2078,2511.3,2511.2,0.39827]
[1728310958204,3.2078,2511.3,2510.8,0.5762]
[1728310958205,3.39787487,2511.3,2510.8,0.5762]
[1728310958502,3.2078,2511.6,2511.5,0.39822]
[1728310958702,3.39787487,2511.6,2511.5,0.39822]
[1728310959002,3.2078,2512.0,2511.9,0.39816]
[1728310959214,3.2078,2512.0,2511.2,0.5608]
[1728310959396,3.2078,2511.7,2511.1,3.2078]
[1728310959700,3.39787487,2511.7,2511.0,0.99576]
[1728310959897,3.39787487,2511.7,2511.2,0.39827]
[1728310959898,0.39821,2511.6,2511.2,0.39827]
[1728310960097,3.39787487,2511.7,2510.8,4.20364]
[1728310960300,3.39787487,2511.7,2510.4,3.1097]
[1728310960301,3.2078,2512.0,2511.9,0.39816]
[1728310960505,0.39809,2512.4,2511.3,12.54816003]
[1728310960506,3.2078,2512.4,2511.3,12.54816003]
[1728310960802,3.2078,2511.9,2511.8,0.39818]
[1728310960998,3.2078,2511.9,2511.2,0.5566]
[1728310961301,3.39787487,2511.9,2511.4,4.31]
[1728310961498,0.19007487,2511.9,2511.7,0.39818]
[1728310961698,0.19007487,2511.9,2511.6,0.3982]
[1728310961902,0.39818,2511.8,2511.5,0.39822]
[1728310962095,3.2078,2511.8,2511.2,0.5566]
[1728310962398,0.39826,2511.3,2510.9,0.39832]
[1728310962705,4.2034,2511.5,2510.8,0.39833]
[1728310962706,3.2078,2511.5,2510.8,0.39833]
[1728310962998,3.2078,2511.5,2510.7,4.31]
[1728310962999,3.39787487,2511.5,2510.7,4.31]
[1728310963201,0.39826,2511.3,2510.8,0.39832]
[1728310963395,3.39787487,2511.5,2510.7,4.31]
[1728310963705,0.39831,2511.0,2510.5,0.39838]
[1728310964005,0.39833,2510.9,2510.4,4.70839]
[1728310964195,0.39833,2510.9,2510.1,0.5503]
[1728310964196,3.2078,2510.9,2510.1,4.8603]
[1728310964399,3.2078,2510.6,2510.2,0.39842]
[1728310964701,0.39843,2510.2,2509.6,3.2078]
[1728310964897,3.60622,2510.3,2509.5,0.39854]
[1728310965101,3.60622,2510.3,2509.7,0.3985]
[1728310965102,0.39845,2510.1,2509.7,0.3985]
[1728310965299,0.19007487,2510.1,2509.3,0.5503]
[1728310965503,0.39849,2509.9,2509.4,0.39856]
[1728310965700,3.60632,2509.7,2509.1,4.31]
[1728310965899,0.39851,2509.7,2509.4,0.39856]
[1728310966104,3.79638487,2509.7,2509.4,0.39856]
[1728310966301,3.39787487,2509.7,2509.4,0.39856]
[1728310966601,3.39787487,2509.7,2508.9,0.99658]
[1728310966602,3.39787487,2509.7,2509.6,0.39852]
[1728310966805,0.5463,2510.2,2510.0,0.39845]
[1728310967101,0.5463,2510.2,2508.6,0.5503]
[1728310967102,0.19007487,2510.2,2510.1,0.39845]
[1728310968199,0.19007487,2510.2,2509.8,4.31]
[1728310968409,0.19007487,2510.2,2509.5,8.51413]
[1728310968706,0.19007487,2510.2,2510.1,0.39845]
[1728310969402,1.1668,2510.6,2510.5,0.39838]
[1728310969403,0.5894,2510.6,2510.5,0.39838]
[1728310969699,3.2078,2510.8,2509.9,0.9962]
[1728310969901,0.39835,2510.7,2510.4,0.39839]
[1728310970103,3.2078,2510.8,2510.6,0.39835]
[1728310970607,3.2078,2510.8,2510.7,0.39835]
[1728310972107,3.2078,2511.0,2510.9,0.39832]
[1728310972402,3.7478,2511.6,2510.8,0.99583]
[1728310972605,0.39824,2511.4,2511.2,0.39826]
[1728310972810,3.7478,2511.6,2511.2,0.39826]
[1728310973100,4.14601,2511.6,2511.4,0.39823]
[1728310973305,0.39824,2511.4,2510.7,3.2078]
[1728310973510,0.39828,2511.2,2510.7,3.2078]
[1728310973809,0.39827,2511.2,2511.0,0.3983]
[1728310974309,4.38068,2511.2,2510.5,0.99596]
[1728310974604,3.2078,2511.3,2510.2,0.5979]
[1728310974803,3.2078,2510.7,2510.2,0.5979]
[1728310975106,3.2078,2510.7,2509.8,0.99621]
[1728310975302,0.589,2510.6,2510.0,0.99616]
[1728310975507,0.589,2510.6,2509.6,3.2078]
[1728310975807,0.589,2510.6,2509.7,4.3041174]
[1728310976006,0.589,2510.6,2510.5,0.39838]
[1728310976310,0.589,2510.6,2509.9,3.2078]
[1728310976311,4.5722,2510.6,2509.9,0.99618]
[1728310976611,0.589,2510.6,2509.6,5.20041]
[1728310976911,0.98737,2510.6,2510.5,0.39838]
[1728310977099,0.98737,2510.6,2510.1,0.99609]
[1728310977298,0.589,2510.6,2510.0,0.99616]
[1728310977502,0.39841,2510.4,2510.3,0.39841]
[1728310977706,0.39843,2510.2,2510.1,0.39843]
[1728310978009,0.5681,2510.3,2510.1,0.39843]
[1728310978317,0.39843,2510.2,2510.1,0.39845]
[1728310978520,0.39843,2510.2,2509.7,0.99627]
[1728310978521,0.3985,2509.8,2509.7,0.3985]
[1728310978816,3.2078,2509.9,2509.0,4.31]
[1728310979011,3.2078,2510.2,2509.5,0.99636]
[1728310979314,3.2078,2510.2,2510.1,0.39845]
[1728310979615,3.2078,2510.2,2509.0,0.5712]
[1728310979616,4.20389,2510.2,2509.0,0.5712]
[1728310979803,3.2078,2509.9,2509.2,0.99646]
[1728310980005,3.2078,2509.9,2509.4,0.99638]
[1728310980316,3.7968,2510.6,2509.6,4.31]
[1728310980516,0.99563,2511.4,2510.3,4.31]
[1728310980816,3.60608,2511.2,2511.0,0.39829]
[1728310981115,0.39834,2510.8,2510.7,0.39835]
[1728310981312,3.2078,2511.2,2510.8,0.39833]
[1728310981313,3.2078,2510.9,2510.8,0.39833]
[1728310981522,3.2078,2511.2,2510.3,0.99604]
[1728310981811,3.2078,2511.2,2511.1,0.39829]
[1728310982520,3.2078,2511.5,2511.4,0.39824]
[1728310983009,4.3576,2512.2,2511.4,9.9816]
[1728310983214,3.2078,2512.2,2512.1,0.39813]
[1728310984811,3.2078,2512.5,2512.4,0.39808]
[1728310985211,7.1878,2512.5,2512.2,0.3981]
[1728310985412,7.1878,2512.5,2511.5,3.8066]
[1728310985413,3.60588,2512.5,2511.6,0.99552]
[1728310985612,0.39808,2512.4,2511.7,0.99549]
[1728310985811,3.2078,2512.5,2511.6,12.73362022]
[1728310986015,3.2078,2512.2,2511.2,3.2078]
[1728310986207,0.5714,2512.7,2511.9,1.39357]
[1728310986208,3.2078,2512.5,2511.9,1.39357]
[1728310986416,3.2078,2512.5,2512.4,0.39808]
[1728310987015,13.1878,2512.5,2511.8,3.2078]
[1728310987321,3.2078,2512.5,2511.8,3.2078]
[1728310987710,3.2078,2512.5,2512.3,0.39809]
[1728310987907,3.2078,2512.5,2511.8,3.2078]
[1728310988116,3.2078,2512.5,2512.3,0.39808]
[1728310988318,3.2078,2512.5,2511.9,0.99541]
[1728310988623,3.2078,2512.5,2512.4,0.39808]
[1728310990420,3.7848,2512.9,2512.1,0.9953]
[1728310990725,3.7848,2512.9,2512.1,5.23542279]
[1728310991021,3.7848,2512.9,2512.8,0.39802]
[1728310991212,3.7848,2512.9,2512.3,0.99525]
[1728310991213,0.39802,2512.8,2512.7,0.39803]
[1728310991414,0.39803,2512.7,2512.3,0.39809]
[1728310991619,7.7648,2512.9,2511.6,0.5476]
[1728310991620,4.77985,2512.9,2511.6,0.5476]
[1728310991917,0.577,2512.9,2511.8,4.31]
[1728310992112,0.97502,2512.9,2512.0,0.99537]
[1728310992312,0.577,2512.9,2512.0,0.99537]
[1728310992515,0.577,2512.9,2512.1,0.99533]
[1728310992713,0.577,2512.9,2511.8,4.31]
[1728310993019,0.577,2512.9,2512.8,0.39802]
[1728310993020,0.975,2512.9,2512.8,0.39802]
[1728310993213,0.975,2512.9,2512.7,0.39803]
[1728310993411,0.975,2512.9,2512.8,0.39802]
[1728310993412,0.577,2512.9,2512.8,0.39802]
[1728310993618,0.577,2512.9,2512.4,0.9952]
[1728310993817,0.398,2512.9,2512.2,0.99528]
[1728310994116,0.99501,2512.9,2512.4,0.39807]
[1728310994318,0.39805,2512.6,2512.4,0.39808]
[1728310994712,3.60585,2512.7,2512.5,0.39805]
[1728310994911,3.2078,2512.7,2512.6,0.39805]
[1728310995116,3.2078,2513.0,2512.9,0.398]
[1728310995311,3.60579,2513.0,2512.9,0.398]
[1728310995522,3.60579,2513.0,2512.4,0.99518]
[1728310995523,0.39801,2512.9,2512.8,0.39801]
[1728310995911,3.2078,2513.0,2512.2,1.55158]
[1728310996115,3.2078,2513.0,2512.2,0.99528]
[1728310996328,0.39802,2512.8,2512.7,0.39803]
[1728310996517,3.2078,2513.0,2512.3,0.99525]
[1728310996820,3.2078,2513.3,2512.9,4.31]
[1728310997026,3.2078,2513.9,2513.8,0.39786]
[1728310997820,3.2078,2514.3,2514.2,0.3978]
[1728310998224,3.2078,2514.3,2514.2,4.3754]
[1728310998524,0.5891,2514.7,2514.3,0.39777]
[1728310998525,3.60553,2514.6,2514.3,0.39777]
[1728310998720,3.60553,2514.6,2514.0,3.2078]
[1728310998721,3.2078,2514.6,2514.5,0.39775]
[1728310998920,3.2078,2514.6,2514.4,0.39776]
[1728310999118,3.2078,2514.6,2513.9,1.55019]
[1728310999119,0.9944,2514.5,2514.1,4.61669835]
[1728310999422,0.5899,2514.9,2514.1,0.39781]
[1728310999423,3.2078,2514.3,2514.1,0.39781]
[1728310999624,3.2078,2514.3,2513.7,4.20247]
[1728310999826,3.60558,2514.3,2513.8,0.39786]
[1728311000016,3.2078,2514.3,2513.8,4.52928733]
[1728311000223,0.39776,2514.5,2514.2,0.3978]
[1728311000417,0.2,2515.0,2514.4,7.5178]
[1728311000719,0.2,2515.0,2514.9,4.70768]
[1728311001124,0.2,2515.0,2514.9,19.00167091]
[1728311001323,0.5466,2516.2,2514.9,19.00167091]
[1728311001324,3.2078,2516.2,2515.6,4.31]
[1728311001625,0.5435,2516.6,2515.6,4.31]
[1728311001626,3.2078,2516.6,2516.2,0.39747]
[1728311001848,0.39728,2517.5,2516.8,0.39737]
[1728311002019,0.39728,2517.5,2516.4,3.2078]
[1728311002020,3.2078,2517.5,2516.4,7.5178]
[1728311002325,0.99301,2518.0,2516.8,4.31]
[1728311002326,1.0901,2517.7,2516.8,4.31]
[1728311002622,1.0901,2517.7,2516.4,3.2078]
[1728311002623,3.2078,2517.9,2517.1,4.31]
[1728311002825,3.2078,2517.9,2516.4,3.2078]
[1728311002826,0.39729,2517.4,2516.9,4.45729469]
[1728311003027,0.39726,2517.6,2517.1,4.31]
[1728311003230,0.39726,2517.6,2516.8,0.39738]
[1728311003231,3.2078,2517.9,2517.4,4.70728]
[1728311003419,0.202,2518.6,2517.8,4.31]
[1728311003621,3.2078,2518.7,2517.8,4.31]
[1728311004125,0.3972,2518.0,2517.9,4.25487598]
[1728311004328,3.9712,2518.0,2517.2,7.5178]
[1728311004521,0.39717,2518.2,2517.5,4.31]
[1728311004722,3.2078,2518.6,2517.5,4.31]
[1728311005233,3.2078,2518.6,2517.9,4.31]
[1728311005531,0.39711,2518.6,2517.9,7.5178]
[1728311005932,3.2078,2518.5,2517.5,7.5178]
[1728311006126,0.39728,2517.5,2517.1,4.32]
[1728311006326,0.39724,2517.7,2517.1,4.32]
[1728311006525,0.39724,2517.7,2517.2,4.18485351]
[1728311006720,0.39724,2517.7,2517.1,4.32]
[1728311006721,0.39728,2517.5,2517.1,4.32]
[1728311007022,3.2078,2517.7,2517.1,0.01]
[1728311007023,0.39726,2517.6,2517.1,0.01]
[1728311007226,3.2078,2517.7,2517.1,0.01]
[1728311007428,3.60505,2517.7,2517.1,0.01]
[1728311007634,0.3971,2518.7,2518.0,0.39719]
[1728311007932,0.39706,2518.9,2518.3,4.31]
[1728311008127,0.39708,2518.8,2518.3,4.31]
[1728311008325,3.2078,2519.0,2518.3,4.31]
[1728311008530,4.20042,2519.0,2518.3,4.31]
[1728311008729,0.39717,2518.2,2517.9,4.31]
[1728311008928,3.2078,2518.7,2518.0,0.39719]
[1728311009128,0.39711,2518.6,2517.9,4.7072]
[1728311009333,3.2078,2519.0,2518.4,4.31]
[1728311009626,3.2078,2519.0,2518.7,4.31]
[1728311009830,3.2078,2519.0,2518.4,4.31]
[1728311010028,3.2078,2519.3,2518.4,4.31]
[1728311010233,3.2078,2519.3,2518.8,0.39706]
[1728311010428,3.2078,2519.6,2519.1,4.31]
[1728311010627,3.2078,2519.6,2519.5,4.31]
[1728311010838,0.31,2520.0,2519.5,4.31]
[1728311011029,0.39692,2519.8,2519.2,0.397]